bitfinex/quotes_BTCUSD_20250602
["timestamp","ask_amount","ask_price","bid_price","bid_amount"]
[1748872871369,0.39252,103760.0,103750.0,0.86305424]
[1748872872104,0.42332,103760.0,103750.0,0.60934455]
[1748872872287,0.49286861,103760.0,103750.0,0.22177889]
[1748872872509,1.00634727,103760.0,103750.0,9.347e-05]
[1748872872720,1.10220157,103760.0,103750.0,9.347e-05]
[1748872872837,1.19471279,103760.0,103750.0,9.347e-05]
[1748872873895,1.20471279,103760.0,103750.0,9.347e-05]
[1748872874248,1.19471279,103760.0,103750.0,9.347e-05]
[1748872874448,1.19871279,103760.0,103750.0,9.347e-05]
[1748872874650,1.25571279,103760.0,103750.0,0.00209347]
[1748872874846,1.22465679,103760.0,103750.0,0.00209347]
[1748872875064,1.26563536,103760.0,103750.0,0.19486455]
[1748872875272,1.10320139,103760.0,103750.0,0.00209347]
[1748872875888,0.46495688,103760.0,103750.0,0.21414099]
[1748872876091,0.667347,103760.0,103750.0,0.21414099]
[1748872876299,0.80495697,103760.0,103750.0,0.56917688]
[1748872876536,0.45532,103760.0,103750.0,0.56917688]
[1748872876992,0.39352,103760.0,103750.0,0.7568212]
[1748872877238,0.39352,103760.0,103750.0,0.67957203]
[1748872878568,0.39052,103760.0,103750.0,0.67857203]
[1748872878770,0.42062,103760.0,103750.0,0.44267118]
[1748872878946,0.42062,103760.0,103750.0,0.77811118]
[1748872878947,0.39052,103760.0,103750.0,0.77811118]
[1748872879355,0.39252,103760.0,103750.0,0.77811118]
[1748872879556,0.38852,103760.0,103750.0,0.79165203]
[1748872879917,0.39052,103760.0,103750.0,0.79165203]
[1748872880569,0.39052,103760.0,103750.0,0.34181203]
[1748872880765,0.39052,103760.0,103750.0,0.79129203]
[1748872881386,0.39052,103760.0,103750.0,0.79133203]
[1748872881530,0.39052,103760.0,103750.0,0.88384325]
[1748872881726,0.39052,103760.0,103750.0,0.88396325]
[1748872881989,0.39052,103760.0,103750.0,0.34185203]
[1748872882185,0.39052,103760.0,103750.0,0.79153203]
[1748872882949,0.39052,103760.0,103750.0,0.32731118]
[1748872883182,0.42232,103760.0,103750.0,0.77711118]
[1748872883796,0.42232,103760.0,103750.0,0.44171118]
[1748872884150,1.09825831,103760.0,103750.0,0.00013347]
[1748872884378,1.09725841,103760.0,103750.0,0.11453347]
[1748872884570,0.82163175,103760.0,103750.0,0.34585735]
[1748872884910,0.81199404,103760.0,103750.0,0.34585735]
[1748872885346,0.82163138,103760.0,103750.0,0.34585735]
[1748872885562,0.82163147,103760.0,103750.0,0.68157735]
[1748872885765,0.81199404,103760.0,103750.0,0.68157735]
[1748872886088,0.81199404,103760.0,103750.0,0.86592086]
[1748872886089,0.38952,103760.0,103750.0,0.86592086]
[1748872886223,0.38952,103760.0,103750.0,0.88046171]
[1748872886912,0.38952,103760.0,103750.0,0.7919725]
[1748872887848,0.38752,103760.0,103750.0,0.7919725]
[1748872888737,0.38752,103760.0,103750.0,1.42478208]
[1748872888951,0.38552,103760.0,103750.0,0.7919725]
[1748872889285,0.38552,103760.0,103750.0,0.4562525]
[1748872889489,0.38552,103760.0,103750.0,0.7923325]
[1748872889745,0.38552,103760.0,103750.0,0.88484372]
[1748872890713,0.38552,103760.0,103750.0,0.91674372]
[1748872890915,0.38463182,103760.0,103750.0,0.43436372]
[1748872891112,0.38463182,103760.0,103750.0,0.88508372]
[1748872891627,0.38463182,103760.0,103750.0,0.7925725]
[1748872892649,0.38463182,103760.0,103750.0,1.1925725]
[1748872893297,0.38463182,103760.0,103750.0,2.18618208]
[1748872893507,0.38463182,103760.0,103750.0,2.21510508]
[1748872894565,0.38463182,103760.0,103750.0,1.6143263]
[1748872894768,0.38463182,103760.0,103750.0,0.86399752]
[1748872894983,0.38463182,103760.0,103750.0,0.7734863]
[1748872895210,0.38463182,103760.0,103750.0,1.1954433]
[1748872895418,0.38463182,103760.0,103750.0,0.8588433]
[1748872895627,0.38463182,103760.0,103750.0,0.7465633]
[1748872895866,0.38463182,103760.0,103750.0,1.1975633]
[1748872896091,0.38463182,103760.0,103750.0,1.9420841]
[1748872896307,0.38463182,103760.0,103750.0,1.9423241]
[1748872896961,0.38463182,103760.0,103750.0,1.9233241]
[1748872897167,0.38463182,103760.0,103750.0,1.9423241]
[1748872897377,0.38463182,103760.0,103750.0,2.2923241]
[1748872897792,0.38463182,103760.0,103750.0,1.68071452]
[1748872897993,0.38463182,103760.0,103750.0,2.2823241]
[1748872898198,0.38463182,103760.0,103750.0,2.2903241]
[1748872898417,0.38563182,103760.0,103750.0,2.2933241]
[1748872898623,0.38563182,103760.0,103750.0,2.2913241]
[1748872898832,0.83520555,103790.0,103780.0,0.57616237]
[1748872899036,0.83520555,103790.0,103780.0,2.19150625]
[1748872899239,0.83520555,103790.0,103780.0,2.17250625]
[1748872899433,0.83520555,103790.0,103780.0,2.57250625]
[1748872900055,1.22061555,103790.0,103780.0,2.57250625]
[1748872900486,1.22061555,103790.0,103780.0,2.59150625]
[1748872900829,1.22061555,103790.0,103780.0,2.59350625]
[1748872901037,1.22061555,103790.0,103780.0,2.60350625]
[1748872901588,1.22061555,103790.0,103780.0,2.60550625]
[1748872902235,1.22061555,103790.0,103780.0,2.14426625]
[1748872902431,1.22061555,103790.0,103780.0,2.59522625]
[1748872902675,1.219905,103790.0,103780.0,2.60522625]
[1748872902888,0.07799761,103790.0,103780.0,2.59522625]
[1748872903117,0.07799761,103790.0,103780.0,2.14426625]
[1748872903563,0.07799761,103790.0,103780.0,1.51965667]
[1748872903777,0.07799761,103790.0,103780.0,2.57230625]
[1748872903989,0.07899761,103790.0,103780.0,2.59630625]
[1748872904816,0.07899761,103790.0,103780.0,2.59830625]
[1748872905461,0.07899761,103790.0,103780.0,2.60830625]
[1748872905671,0.07899761,103790.0,103780.0,2.63721725]
[1748872905884,0.01839314,103790.0,103780.0,7.78424425]
[1748872906063,0.00849031,103790.0,103780.0,5.27271725]
[1748872906503,0.00849031,103790.0,103780.0,4.92091725]
[1748872906726,0.1086031,103840.0,103830.0,0.23605565]
[1748872906935,0.0764031,103840.0,103830.0,1.80035953]
[1748872907136,0.07609132,103840.0,103830.0,1.73231863]
[1748872907355,0.07599469,103840.0,103830.0,1.73231863]
[1748872907556,0.13966378,103860.0,103850.0,0.22147215]
[1748872907756,0.10816378,103860.0,103850.0,0.65372645]
[1748872907969,0.52579942,103860.0,103850.0,0.65372645]
[1748872908933,0.52579942,103860.0,103850.0,0.6692673]
[1748872909138,0.53179942,103860.0,103850.0,0.6692673]
[1748872909344,0.39163564,103860.0,103850.0,1.28053747]
[1748872909592,0.39163564,103860.0,103850.0,1.33649358]
[1748872909785,0.42323564,103860.0,103850.0,1.19268789]
[1748872910110,0.39663564,103860.0,103850.0,1.79429747]
[1748872910313,0.39663564,103860.0,103850.0,1.82047233]
[1748872910499,0.39146196,103860.0,103850.0,1.84701274]
[1748872910695,0.39146196,103860.0,103850.0,2.22991274]
[1748872910916,0.0614,103920.0,103910.0,0.22134427]
[1748872911128,0.0614,103920.0,103910.0,1.18359857]
[1748872911339,0.0614,103920.0,103910.0,1.22431428]
[1748872911589,0.0614,103920.0,103910.0,1.19813942]
[1748872912427,0.0644,103920.0,103910.0,1.19813942]
[1748872912833,0.44933,103920.0,103910.0,0.74777942]
[1748872913032,0.45433,103920.0,103910.0,1.19737942]
[1748872913448,0.44933,103920.0,103910.0,1.19737942]
[1748872913848,0.42223,103920.0,103910.0,1.19737942]
[1748872914068,0.39093,103920.0,103910.0,1.19737942]
[1748872914481,0.45433,103920.0,103910.0,1.19737942]
[1748872914693,0.45433,103920.0,103910.0,1.19729942]
[1748872915028,0.45433,103920.0,103910.0,1.13323857]
[1748872915234,0.46395195,103920.0,103910.0,1.12361551]
[1748872915446,1.16114204,103920.0,103910.0,0.41604]
[1748872915647,1.10223916,103920.0,103910.0,0.53004]
[1748872915858,1.0829948,103920.0,103910.0,0.53004]
[1748872916067,1.09261758,103920.0,103910.0,0.53004]
[1748872916636,1.17884928,103920.0,103910.0,0.114]
[1748872916845,0.01924992,103890.0,103880.0,0.62756901]
[1748872917044,0.43157492,103890.0,103880.0,0.86568]
[1748872917259,1.01864225,103890.0,103880.0,0.73199614]
[1748872917470,1.01864225,103890.0,103880.0,0.52984]
[1748872917471,1.00901734,103890.0,103880.0,0.52984]
[1748872917677,0.79725482,103890.0,103880.0,0.75124819]
[1748872917882,1.00901632,103890.0,103880.0,0.74262235]
[1748872918092,0.99953765,103890.0,103880.0,0.53084]
[1748872918303,1.17780532,103890.0,103880.0,0.114]
[1748872918509,1.09639176,103890.0,103880.0,0.32578235]
[1748872918744,1.01016191,103890.0,103880.0,0.33540837]
[1748872918941,1.01978729,103890.0,103880.0,0.32578235]
[1748872919156,0.79077568,103890.0,103880.0,0.6816744]
[1748872919363,0.78977568,103890.0,103880.0,0.7775287]
[1748872919561,0.44977568,103890.0,103880.0,0.79206955]
[1748872919989,0.41737568,103890.0,103880.0,0.79206955]
[1748872920487,0.41737568,103890.0,103880.0,0.7770887]
[1748872920488,0.44917568,103890.0,103880.0,0.7770887]
[1748872920681,0.44917568,103890.0,103880.0,0.2310344]
[1748872920922,0.44917568,103890.0,103880.0,0.79154955]
[1748872920923,0.38707568,103890.0,103880.0,0.79154955]
[1748872921364,0.38707568,103890.0,103880.0,0.79162955]
[1748872922408,0.38707568,103890.0,103880.0,0.34142955]
[1748872922620,1.03854504,103890.0,103880.0,0.72232984]
[1748872922817,1.03854504,103890.0,103880.0,0.74158263]
[1748872922818,1.05779607,103890.0,103880.0,0.74158263]
[1748872923025,0.99983802,103890.0,103880.0,0.4158]
[1748872923235,0.99983802,103890.0,103880.0,0.5298]
[1748872923654,1.43273232,103890.0,103880.0,0.5298]
[1748872924083,1.43273232,103890.0,103880.0,0.114]
[1748872924287,1.52524354,103890.0,103880.0,0.114]
[1748872924905,1.43273232,103890.0,103880.0,0.114]
[1748872925316,0.79007568,103890.0,103880.0,0.33540819]
[1748872925776,0.79007568,103890.0,103880.0,0.84474627]
[1748872925777,0.41797568,103890.0,103880.0,0.84474627]
[1748872925997,0.38707568,103890.0,103880.0,0.85928712]
[1748872926178,0.38907568,103890.0,103880.0,1.4608967]
[1748872926428,0.38907568,103890.0,103880.0,0.85928712]
[1748872926638,0.38707568,103890.0,103880.0,0.85928712]
[1748872926853,0.38807568,103890.0,103880.0,0.85928712]
[1748872927055,0.38607568,103890.0,103880.0,1.4608967]
[1748872927258,0.38607568,103890.0,103880.0,1.8648967]
[1748872927467,0.38507568,103890.0,103880.0,1.8648967]
[1748872927667,0.38507568,103890.0,103880.0,1.4183767]
[1748872927868,0.38507568,103890.0,103880.0,1.8731367]
[1748872928770,0.38507568,103890.0,103880.0,1.9331367]
[1748872928955,0.38498851,103890.0,103880.0,7.0311637]
[1748872929307,0.38498851,103890.0,103880.0,1.80717292]
[1748872929509,0.38498851,103890.0,103880.0,1.83615714]
[1748872929712,0.38498851,103890.0,103880.0,2.22615714]
[1748872930230,0.38498851,103890.0,103880.0,1.62454756]
[1748872930438,0.38498851,103890.0,103880.0,2.22615714]
[1748872930652,0.38498851,103890.0,103880.0,7.33318414]
[1748872930873,0.001,103920.0,103910.0,0.23588512]
[1748872931090,0.001,103920.0,103910.0,1.62484388]
[1748872931352,0.14236378,103970.0,103960.0,0.02885613]
[1748872931556,0.14236378,103970.0,103960.0,0.67191781]
[1748872931763,0.14284993,103970.0,103960.0,0.76777211]
[1748872931972,0.37368387,103970.0,103960.0,0.65268067]
[1748872932180,0.69444895,103970.0,103960.0,0.66229919]
[1748872932386,0.69444895,103970.0,103960.0,0.67191771]
[1748872932387,0.48991231,103970.0,103960.0,0.67191771]
[1748872932604,0.79062615,103970.0,103960.0,0.76777201]
[1748872932819,0.38474,103970.0,103960.0,0.76777201]
[1748872933264,0.38774,103970.0,103960.0,0.76777201]
[1748872934346,0.38774,103970.0,103960.0,0.33519771]
[1748872934556,0.38774,103970.0,103960.0,0.67223771]
[1748872934765,0.59933903,103970.0,103960.0,0.11396]
[1748872934971,0.59933903,103970.0,103950.0,0.62734351]
[1748872934972,0.01923714,103960.0,103950.0,0.30634378]
[1748872935188,0.64747386,103960.0,103950.0,0.11396]
[1748872935592,0.53240944,103950.0,103940.0,0.1924187]
[1748872935799,0.62456862,103950.0,103940.0,0.32558038]
[1748872936013,1.00930862,103950.0,103940.0,0.32558038]
[1748872936546,0.99968917,103950.0,103940.0,0.3063387]
[1748872936768,0.99968917,103950.0,103940.0,0.32558047]
[1748872936965,0.78804,103950.0,103940.0,0.34482131]
[1748872937394,0.41534,103950.0,103940.0,0.34482131]
[1748872937620,0.38474,103950.0,103940.0,0.34482131]
[1748872937875,0.38474,103950.0,103940.0,0.51763939]
[1748872938095,0.38674,103950.0,103940.0,0.34482131]
[1748872938306,0.45154,103950.0,103940.0,0.34482131]
[1748872938741,0.42004,103950.0,103940.0,0.34482131]
[1748872938943,0.38874,103950.0,103940.0,0.44067561]
[1748872939129,0.28874,103950.0,103940.0,0.44067561]
[1748872939837,0.28874,103950.0,103940.0,0.68154131]
[1748872940053,0.31964,103950.0,103940.0,0.68154131]
[1748872940708,0.28874,103950.0,103940.0,0.77739561]
[1748872943941,0.28874,103950.0,103940.0,0.79193646]
[1748872944353,0.28874,103950.0,103940.0,0.79293646]
[1748872944551,0.28874,103950.0,103940.0,1.13293646]
[1748872945230,0.28874,103950.0,103940.0,0.78167561]
[1748872945432,0.28874,103950.0,103940.0,1.11807561]
[1748872946515,0.28874,103950.0,103940.0,1.13261646]
[1748872947110,0.28874,103950.0,103940.0,1.73422604]
[1748872947309,0.28874,103950.0,103940.0,1.79852604]
[1748872947764,0.28865996,103950.0,103940.0,1.79852604]
[1748872948207,0.28865996,103950.0,103940.0,2.19852604]
[1748872948620,0.28565996,103950.0,103940.0,2.19852604]
[1748872948786,0.28365996,103950.0,103940.0,2.26252604]
[1748872948990,0.28365996,103950.0,103940.0,7.36355304]
[1748872949617,0.28365996,103950.0,103940.0,7.12282604]
[1748872950013,0.28365996,103950.0,103940.0,6.52121646]
[1748872950229,0.28365996,103950.0,103940.0,1.26851646]
[1748872950456,0.28365996,103950.0,103940.0,1.25397561]
[1748872950610,0.28365996,103950.0,103940.0,1.07575561]
[1748872950815,0.28365996,103950.0,103940.0,0.85055561]
[1748872950996,0.28365996,103950.0,103940.0,0.78755561]
[1748872951212,0.28365996,103950.0,103940.0,1.12755561]
[1748872951399,0.28365996,103950.0,103940.0,1.75646519]
[1748872951600,0.28365996,103950.0,103940.0,1.77500604]
[1748872951829,0.28365996,103950.0,103940.0,1.13809646]
[1748872952036,0.28365996,103950.0,103940.0,0.33075561]
[1748872952213,0.28365996,103950.0,103940.0,1.19713646]
[1748872952410,0.28365996,103950.0,103940.0,0.73075561]
[1748872952617,0.28365996,103950.0,103940.0,1.18259561]
[1748872952812,0.28365996,103950.0,103940.0,0.73075561]
[1748872953080,0.28365996,103950.0,103940.0,1.18555561]
[1748872953470,0.31455996,103950.0,103940.0,0.44855561]
[1748872953694,0.31455996,103950.0,103940.0,0.78571561]
[1748872954479,0.28365996,103950.0,103940.0,0.78571561]
[1748872954683,0.28365996,103950.0,103940.0,0.80025646]
[1748872955063,0.28365996,103950.0,103940.0,1.14025646]
[1748872955687,0.28365996,103950.0,103940.0,0.44855561]
[1748872955888,0.28365996,103950.0,103940.0,0.78583561]
[1748872956978,0.34865996,103950.0,103940.0,0.78583561]
[1748872957365,0.34865996,103950.0,103940.0,0.44855561]
[1748872957808,0.62690844,103950.0,103940.0,0.13142093]
[1748872958017,0.61729001,103950.0,103940.0,0.32383954]
[1748872958218,0.56991896,103950.0,103940.0,0.2186601]
[1748872958421,0.36789858,103950.0,103940.0,0.22828038]
[1748872958557,0.38713822,103950.0,103940.0,0.22828038]
[1748872958966,0.58915841,103950.0,103940.0,0.23490094]
[1748872959165,0.37751831,103950.0,103940.0,0.24452122]
[1748872959512,0.38713813,103950.0,103940.0,0.24152122]
[1748872959710,0.57953832,103950.0,103940.0,0.22228057]
[1748872959929,0.57953832,103950.0,103940.0,0.001]
[1748872959930,0.63749211,103950.0,103940.0,0.001]
[1748872960127,0.63749211,103950.0,103940.0,0.21266029]
[1748872960332,0.63749211,103950.0,103940.0,0.01062093]
[1748872960571,0.5602997,103950.0,103940.0,0.22228085]
[1748872960767,0.37751896,103950.0,103940.0,0.22228094]
[1748872960971,0.57953915,103950.0,103940.0,0.23190141]
[1748872961186,0.57953915,103950.0,103940.0,0.001]
[1748872961187,0.56029997,103950.0,103940.0,0.001]
[1748872961399,0.99815427,103950.0,103940.0,0.001]
[1748872961591,1.09066549,103950.0,103940.0,0.001]
[1748872961831,1.09266549,103950.0,103940.0,0.001]
[1748872962052,1.00015427,103950.0,103940.0,0.1934187]
[1748872962250,0.35265996,103950.0,103940.0,0.33708029]
[1748872962576,0.35265996,103950.0,103940.0,0.22228029]
[1748872962815,0.28765996,103950.0,103940.0,0.43297459]
[1748872963509,0.28765996,103950.0,103940.0,0.76977459]
[1748872964062,0.36007922,103950.0,103940.0,0.42335431]
[1748872964218,0.41000806,103950.0,103940.0,0.3082587]
[1748872964426,0.59278936,103950.0,103940.0,0.11584]
[1748872964618,0.5620997,103950.0,103940.0,0.3082587]
[1748872964817,0.5620997,103950.0,103940.0,0.31787954]
[1748872965017,0.5620997,103950.0,103940.0,0.11584]
[1748872965402,0.55247997,103950.0,103940.0,0.3082587]
[1748872965610,0.55247997,103950.0,103940.0,0.11584]
[1748872965814,0.89247997,103950.0,103940.0,0.3082587]
[1748872966014,0.35045996,103950.0,103940.0,0.31787945]
[1748872966191,0.35045996,103950.0,103940.0,0.67372029]
[1748872966392,0.28765996,103950.0,103940.0,0.67372029]
[1748872967497,0.35967913,103950.0,103940.0,0.33712029]
[1748872967699,0.35005996,103950.0,103940.0,0.33712029]
[1748872967871,0.36929876,103950.0,103940.0,0.33712029]
[1748872968077,0.37891793,103950.0,103940.0,0.33712029]
[1748872968509,0.35967922,103950.0,103940.0,0.33712029]
[1748872968652,0.004,103950.0,103940.0,0.39972029]
[1748872968855,0.031,104010.0,104000.0,0.20192298]
[1748872969056,0.031,104010.0,103990.0,0.89024561]
[1748872969057,0.031,104000.0,103990.0,0.89024561]
[1748872969257,0.0639,104000.0,103990.0,0.23115739]
[1748872969547,0.0639,104000.0,103990.0,0.67427739]
[1748872970108,0.0639,104000.0,103990.0,0.68427739]
[1748872970307,0.41563,104000.0,103990.0,0.68427739]
[1748872971248,0.38463,104000.0,103990.0,1.02427739]
[1748872971451,0.38463,104000.0,103990.0,1.03829824]
[1748872972421,0.3845565,104000.0,103990.0,1.63990782]
[1748872973316,0.3845565,104000.0,103990.0,1.8454259]
[1748872973697,0.38448897,104000.0,103990.0,1.8770259]
[1748872973910,0.3844269,104000.0,103990.0,1.8770259]
[1748872974120,0.38436987,104000.0,103990.0,1.8790259]
[1748872974333,0.00014583,104010.0,104000.0,0.64889357]
[1748872974558,9.344e-05,104010.0,104000.0,1.25050315]
[1748872974761,4.531e-05,104010.0,104000.0,1.34635745]
[1748872975201,1.09e-06,104010.0,104000.0,1.13550787]
[1748872975417,0.10657371,104050.0,104040.0,0.20184543]
[1748872975418,0.18969467,104050.0,104040.0,0.20184543]
[1748872975684,0.0644,104040.0,104030.0,0.04792722]
[1748872975883,0.0644,104040.0,104030.0,0.06715142]
[1748872976303,0.07181187,104030.0,104020.0,0.20185212]
[1748872976523,0.16766608,104030.0,104020.0,0.22107853]
[1748872976732,0.1580543,104030.0,104020.0,0.23069169]
[1748872976937,0.56179822,104030.0,104020.0,0.22107881]
[1748872977137,0.56179822,104030.0,104020.0,0.21146565]
[1748872977138,0.57141055,104030.0,104020.0,0.21146565]
[1748872977345,0.5425743,104030.0,104020.0,0.22107881]
[1748872977555,0.76366296,104030.0,104020.0,0.22307881]
[1748872977943,0.58102334,104030.0,104020.0,0.23269188]
[1748872978138,0.77327557,104030.0,104020.0,0.22307881]
[1748872978396,0.74443914,104030.0,104010.0,0.21147401]
[1748872978570,0.74443914,104030.0,104000.0,0.23076754]
[1748872978571,0.0643,104010.0,104000.0,0.23076754]
[1748872978935,0.45843372,104010.0,104000.0,0.23076754]
[1748872979270,0.47766162,104010.0,104000.0,0.21153808]
[1748872979497,0.07281473,104000.0,103990.0,0.20192561]
[1748872979679,0.0632,104000.0,103990.0,0.22115748]
[1748872979879,0.0632,104000.0,103990.0,0.23130331]
[1748872979880,0.41652,104000.0,103990.0,0.23130331]
[1748872980083,0.44772,104000.0,103990.0,0.22130331]
[1748872980448,0.41652,104000.0,103990.0,0.32715761]
[1748872980937,0.44742,104000.0,103990.0,0.22130331]
[1748872981340,0.44742,104000.0,103990.0,0.22530331]
[1748872981545,0.44742,104000.0,103990.0,0.22830331]
[1748872981676,0.45703464,104000.0,103990.0,0.22830331]
[1748872981878,0.44742,104000.0,103990.0,0.22830331]
[1748872982282,0.41652,104000.0,103990.0,0.67415761]
[1748872982483,0.63982769,104000.0,103990.0,0.53947201]
[1748872982709,0.66867299,104000.0,103990.0,0.19947201]
[1748872982947,0.44752,104000.0,103990.0,0.23793575]
[1748872983103,0.45713464,104000.0,103990.0,0.23793575]
[1748872983358,0.44752,104000.0,103990.0,0.24793575]
[1748872983572,0.41652,104000.0,103990.0,0.24793575]
[1748872983732,0.38452,104000.0,103990.0,1.28539963]
[1748872983919,0.38452,104000.0,103990.0,1.29994048]
[1748872984335,0.38452,104000.0,103990.0,1.33224048]
[1748872985321,0.38452,104000.0,103990.0,1.29994048]
[1748872985696,0.38452,104000.0,103990.0,0.6983309]
[1748872986107,0.38452,104000.0,103990.0,0.4752909]
[1748872986301,0.38452,104000.0,103990.0,0.8160509]
[1748872986716,0.44842,104000.0,103990.0,0.36489575]
[1748872986922,0.45803473,104000.0,103990.0,1.03593575]
[1748872987124,0.46764937,104000.0,103990.0,0.70489575]
[1748872987344,0.46764928,104000.0,103990.0,0.70489575]
[1748872987569,0.44842,104000.0,103990.0,0.70489575]
[1748872987778,0.38452,104000.0,103990.0,1.40235963]
[1748872987985,0.38452,104000.0,103990.0,1.75822048]
[1748872988180,0.38452,104000.0,103990.0,1.78932048]
[1748872988386,0.38452,104000.0,103990.0,1.82132048]
[1748872988878,0.38452,104000.0,103990.0,1.1877109]
[1748872989078,0.38452,104000.0,103990.0,1.78932048]
[1748872989667,0.38452,104000.0,103990.0,1.82072048]
[1748872990560,0.38452,104000.0,103990.0,1.81817648]
[1748872990697,0.38452,104000.0,103990.0,1.84947648]
[1748872991747,0.38452,104000.0,103990.0,1.2478669]
[1748872991938,0.38452,104000.0,103990.0,0.82960605]
[1748872992162,0.38452,104000.0,103990.0,1.77345563]
[1748872992370,0.38452,104000.0,103990.0,1.82089648]
[1748872992587,0.38452,104000.0,103990.0,1.82404048]
[1748872993880,0.38452,104000.0,103990.0,1.79204048]
[1748872994208,0.38452,104000.0,103990.0,1.79232048]
[1748872994410,0.38452,104000.0,103990.0,1.1906309]
[1748872994651,0.38452,104000.0,103990.0,1.79224048]
[1748872995290,0.38452,104000.0,103990.0,1.74494212]
[1748872995828,0.38452,104000.0,103990.0,0.8379909]
[1748872995983,0.41502,104000.0,103990.0,1.14375005]
[1748872996190,0.43424937,104000.0,103990.0,0.46071005]
[1748872996402,0.44772,104000.0,103990.0,0.80403005]
[1748872996597,0.44772,104000.0,103990.0,0.80415005]
[1748872996811,0.44772,104000.0,103990.0,0.46071005]
[1748872997014,0.44772,104000.0,103990.0,0.34379005]
[1748872997222,0.41502,104000.0,103990.0,0.80435005]
[1748872997400,0.41502,104000.0,103990.0,0.8188909]
[1748872997829,0.44792,104000.0,103990.0,0.23793575]
[1748872998127,0.44792,104000.0,103990.0,0.36485575]
[1748872998523,0.41502,104000.0,103990.0,0.46071005]
[1748872998732,0.38452,104000.0,103990.0,0.46071005]
[1748872998933,0.38452,104000.0,103990.0,0.80071005]
[1748872999434,0.38452,104000.0,103990.0,1.36956212]
[1748872999834,0.38452,104000.0,103990.0,1.40266212]
[1748873000593,0.38452,104000.0,103990.0,0.6883309]
[1748873000789,0.38452,104000.0,103990.0,1.1596109]
[1748873002596,0.38452,104000.0,103990.0,1.1596509]
[1748873003014,0.38452,104000.0,103990.0,1.1596109]
[1748873003015,0.41602,104000.0,103990.0,1.1596109]
[1748873003374,0.41602,104000.0,103990.0,0.34379005]
[1748873003577,0.41602,104000.0,103990.0,0.80619005]
[1748873004037,0.41602,104000.0,103990.0,1.14619005]
[1748873004680,0.41602,104000.0,103990.0,1.1607309]
[1748873004922,0.38452,104000.0,103990.0,2.33075334]
[1748873005125,0.38452,104000.0,103990.0,1.80529612]
[1748873005760,0.38452,104000.0,103990.0,1.80129612]
[1748873006431,0.02,104050.0,104040.0,0.01]
[1748873006631,0.0512,104050.0,104040.0,1.20852199]
[1748873006849,0.02,104050.0,104040.0,1.85342406]
[1748873007048,0.02,104050.0,104040.0,2.07449175]
[1748873007254,0.04434817,104070.0,104060.0,0.2210252]
[1748873007457,0.0496205,104050.0,104040.0,1.05297946]
[1748873007662,0.0496205,104050.0,104040.0,1.45223919]
[1748873007663,0.0619,104050.0,104040.0,1.45223919]
[1748873007869,0.07151002,104050.0,104040.0,1.45223919]
[1748873008071,0.27333615,104050.0,104040.0,0.53592]
[1748873008277,0.21143615,104050.0,104030.0,0.22107231]
[1748873008480,0.09473339,104040.0,104030.0,0.21146035]
[1748873008683,0.10434498,104040.0,104030.0,0.21146044]
[1748873008865,0.10434498,104040.0,104030.0,0.23068473]
[1748873009027,0.09473339,104040.0,104030.0,0.35132473]
[1748873009224,0.46961198,104040.0,104030.0,0.36093669]
[1748873009503,0.45039,104040.0,104030.0,0.36093669]
[1748873010329,0.45163403,104040.0,104030.0,0.33211735]
[1748873010532,0.41332329,104040.0,104030.0,0.35134155]
[1748873010736,0.40371198,104040.0,104030.0,0.35134155]
[1748873010943,0.46661189,104040.0,104030.0,0.35234155]
[1748873011148,0.41639,104040.0,104030.0,0.44819585]
[1748873011357,0.41739,104040.0,104030.0,0.78819585]
[1748873011566,0.42700104,104040.0,104030.0,0.57170155]
[1748873011776,0.47782366,104040.0,104030.0,0.69234164]
[1748873011979,0.44899,104040.0,104030.0,1.0469936]
[1748873012185,0.67005779,104040.0,104030.0,0.20286484]
[1748873012395,0.44899,104040.0,104030.0,0.35234118]
[1748873012572,0.46821207,104040.0,104030.0,0.35234118]
[1748873012777,0.45860094,104040.0,104030.0,0.35234118]
[1748873012980,0.66044582,104040.0,104030.0,0.33311717]
[1748873013147,0.74763459,104040.0,104030.0,0.21247735]
[1748873013342,0.74763459,104040.0,104030.0,0.69714173]
[1748873013343,0.45860085,104040.0,104030.0,0.69714173]
[1748873013547,0.38549,104040.0,104030.0,1.20995981]
[1748873013761,0.38549,104040.0,104030.0,1.21957177]
[1748873013973,0.41619,104040.0,104030.0,1.21957177]
[1748873014219,0.41619,104040.0,104030.0,1.14260799]
[1748873014427,0.44749,104040.0,104030.0,0.58131369]
[1748873014626,0.41619,104040.0,104030.0,1.14240799]
[1748873015952,0.41619,104040.0,104030.0,0.70195369]
[1748873016158,0.44699,104040.0,104030.0,1.04663369]
[1748873016371,0.38549,104040.0,104030.0,1.15702884]
[1748873016977,0.38549,104040.0,104030.0,1.15748884]
[1748873017801,0.41869,104040.0,104030.0,1.14294799]
[1748873018200,0.44959,104040.0,104030.0,1.04709369]
[1748873018609,0.41869,104040.0,104030.0,1.15748884]
[1748873018816,0.38549,104040.0,104030.0,1.15748884]
[1748873019463,0.38549,104040.0,104030.0,1.74200006]
[1748873019652,0.38549,104040.0,104030.0,1.77270006]
[1748873020066,0.38549,104040.0,104030.0,1.21838884]
[1748873020269,0.38549,104040.0,104030.0,1.58768884]
[1748873020469,0.38449,104040.0,104030.0,1.21280884]
[1748873020678,0.38449,104040.0,104030.0,1.256003]
[1748873020877,0.38449,104040.0,104030.0,1.756083]
[1748873021373,0.38449,104040.0,104030.0,1.783928]
[1748873021528,0.38449,104040.0,104030.0,1.18769384]
[1748873021976,0.38449,104040.0,104030.0,1.19069384]
[1748873022171,0.38449,104040.0,104030.0,1.16184884]
[1748873023819,0.34349,104040.0,104030.0,1.16120884]
[1748873025620,0.34349,104040.0,104030.0,1.16124884]
[1748873026202,0.34349,104040.0,104030.0,1.74706006]
[1748873026405,0.34349,104040.0,104030.0,1.77946006]
[1748873029169,0.34349,104040.0,104030.0,2.17946006]
[1748873029924,0.34349,104040.0,104030.0,2.14706006]
[1748873030533,0.34349,104040.0,104030.0,2.14518006]
[1748873030731,0.34349,104040.0,104030.0,1.59086884]
[1748873031311,0.34349,104040.0,104030.0,1.55904884]
[1748873031513,0.34349,104040.0,104030.0,2.14556006]
[1748873033995,0.26500888,104040.0,104030.0,7.80731833]
[1748873034177,0.00188569,104070.0,104060.0,0.23556605]
[1748873034377,0.00188569,104070.0,104060.0,2.13501157]
[1748873034806,0.00188569,104070.0,104060.0,2.53501157]
[1748873035007,0.00188569,104070.0,104060.0,2.56501157]
[1748873035192,0.38626569,104070.0,104060.0,2.56501157]
[1748873035540,0.38626569,104070.0,104060.0,2.56801157]
[1748873035968,0.38626569,104070.0,104060.0,7.66503857]
[1748873036166,0.38626569,104070.0,104060.0,7.71503857]
[1748873036793,0.38626569,104070.0,104060.0,7.71603857]
[1748873037206,6e-05,104090.0,104080.0,0.63992358]